[Event "FIDE Open World Rapid 2024"]
[Site "New York"]
[Date "2024.12.27"]
[Round "7.23"]
[White "Banh Gia Huy"]
[Black "Christiansen, Johan-Sebastian"]
[Result "1-0"]
[ECO "D02"]
[WhiteElo "2422"]
[BlackElo "2661"]
[Annotator "ChessBase"]
[PlyCount "95"]
[EventDate "2024.12.14"]
[EventType "swiss"]
[EventCountry "USA"]
[SourceTitle "playchess.com"]
[Source "ChessBase"]
[SourceQuality "1"]
[TimeControl "900+10"]

1. d4 {[%emt 0:00:01]} d5 {[%emt 0:00:01]} 2. Nf3 {[%emt 0:00:01]} Nf6 {[%emt 0:00:02]} 3. Bf4 {[%emt 0:00:01]} Nh5 {[%emt 0:00:06]} 4. Bd2 {[%emt 0:00:05]} Nf6 {[%emt 0:00:02]} 5. Bf4 {[%emt 0:00:09]} c5 {[%emt 0:00:03]} 6. e3 {[%emt 0:00:01]} Nc6 {[%emt 0:00:07]} 7. Nbd2 {[%emt 0:00:01]} e6 {[%emt 0:00:13]} 8. c3 {[%emt 0:00:03]} Nh5 {[%emt 0:00:03]} 9. Bg5 {[%emt 0:00:03]} f6 {[%emt 0:00:02]} 10. Bh4 {[%emt 0:00:01]} cxd4 {[%emt 0:00:10]} 11. cxd4 {[%emt 0:00:05]} g6 {[%emt 0:00:12]} 12. Be2 {[%emt 0:00:16]} Be7 {[%emt 0:00:19]} 13. Rc1 {[%emt 0:00:10]} Ng7 {[%emt 0:00:08]} 14. Bg3 {[%emt 0:00:29]} Nf5 {[%emt 0:00:05]} 15. Nb3 {[%emt 0:01:04]} Bb4+ {[%emt 0:01:54]} 16. Nbd2 {[%emt 0:01:42]} Kf7 {[%emt 0:03:57]} 17. a3 {[%emt 0:03:03]} Nxg3 {[%emt 0:00:12]} 18. hxg3 {[%emt 0:00:07]} Be7 {[%emt 0:01:21]} 19. Nb3 {[%emt 0:01:18]} Qb6 {[%emt 0:00:28]} 20. O-O {[%emt 0:00:15]} h5 {[%emt 0:00:50]} 21. Qc2 {[%emt 0:01:42]} f5 {[%emt 0:00:49]} 22. Nc5 {[%emt 0:00:14]} Bf6 {[%emt 0:00:10]} 23. b4 {[%emt 0:00:09]} Kg7 {[%emt 0:01:11]} 24. Nd3 {[%emt 0:00:47]} Bd7 {[%emt 0:00:51]} 25. b5 {[%emt 0:01:09]} Ne7 {[%emt 0:00:18]} 26. Nde5 {[%emt 0:01:59]} Be8 {[%emt 0:00:31]} 27. a4 {[%emt 0:00:42]} g5 {[%emt 0:00:21]} 28. Qc7 {[%emt 0:00:08]} g4 {[%emt 0:00:46]} 29. Nd2 {[%emt 0:00:06]} Rc8 {[%emt 0:00:25]} 30. Qxb6 {[%emt 0:00:28]} axb6 {[%emt 0:00:01]} 31. Nb3 {[%emt 0:00:08]} Ra8 {[%emt 0:03:13]} 32. a5 {[%emt 0:00:05]} bxa5 {[%emt 0:00:07]} 33. Nc5 {[%emt 0:00:01]} Bxe5 {[%emt 0:00:36]} 34. dxe5 {[%emt 0:00:06]} Bf7 {[%emt 0:00:00]} 35. Nxb7 {[%emt 0:00:08]} Ng6 {[%emt 0:00:01]} 36. Nc5 {[%emt 0:00:44]} Rhb8 {[%emt 0:00:52]} 37. Rb1 {[%emt 0:00:47]} a4 {[%emt 0:00:19]} 38. b6 {[%emt 0:00:02]} Ra5 {[%emt 0:00:00]} 39. Nd7 {[%emt 0:01:03]} Rb7 {[%emt 0:00:01]} 40. Bb5 {[%emt 0:00:01]} Ne7 {[%emt 0:00:48]} 41. Bxa4 {[%emt 0:00:07]} Be8 {[%emt 0:00:06]} 42. Rfc1 {[%emt 0:00:41]} Rxa4 {[%emt 0:00:01]} 43. Nc5 {[%emt 0:00:04]} Rb8 {[%emt 0:00:10]} 44. Nxa4 {[%emt 0:00:22]} Bxa4 {[%emt 0:00:01]} 45. Rc7 {[%emt 0:00:12]} Kf7 {[%emt 0:00:07]} 46. Ra1 {[%emt 0:00:16]} Bb5 {[%emt 0:00:37]} 47. Raa7 {[%emt 0:00:11]} Re8 {[%emt 0:00:01]} 48. Rxe7+ {[%emt 0:00:15]} 1-0

[Event "FIDE Open World Rapid 2024"]
[Site "New York"]
[Date "2024.12.27"]
[Round "7.24"]
[White "Isanzhulov, Arystan"]
[Black "Donchenko, Alexander"]
[Result "1-0"]
[ECO "B17"]
[WhiteElo "2395"]
[BlackElo "2618"]
[Annotator "ChessBase"]
[PlyCount "89"]
[EventDate "2024.12.14"]
[EventType "swiss"]
[EventCountry "USA"]
[SourceTitle "playchess.com"]
[Source "ChessBase"]
[SourceQuality "1"]
[TimeControl "900+10"]

1. e4 {[%emt 0:00:02]} c6 {[%emt 0:00:01]} 2. Nf3 {[%emt 0:00:02]} d5 {[%emt 0:00:02]} 3. Nc3 {[%emt 0:00:01]} dxe4 {[%emt 0:00:27]} 4. Nxe4 {[%emt 0:00:02]} Nf6 {[%emt 0:00:02]} 5. Qe2 {[%emt 0:00:02]} Nxe4 {[%emt 0:00:22]} 6. Qxe4 {[%emt 0:00:02]} Nd7 {[%emt 0:00:01]} 7. Bc4 {[%emt 0:00:02]} Nf6 {[%emt 0:00:02]} 8. Qe2 {[%emt 0:00:01]} Bf5 {[%emt 0:00:12]} 9. O-O {[%emt 0:00:03]} e6 {[%emt 0:00:10]} 10. d4 {[%emt 0:00:01]} Be7 {[%emt 0:00:25]} 11. Bf4 {[%emt 0:00:05]} O-O {[%emt 0:00:16]} 12. c3 {[%emt 0:01:50]} a5 {[%emt 0:00:43]} 13. a4 {[%emt 0:00:09]} Nd5 {[%emt 0:00:44]} 14. Bg3 {[%emt 0:00:10]} h6 {[%emt 0:00:56]} 15. Ne5 {[%emt 0:00:57]} Nb6 {[%emt 0:01:11]} 16. Bb3 {[%emt 0:00:45]} Nd7 {[%emt 0:00:02]} 17. Rfe1 {[%emt 0:00:50]} Nxe5 {[%emt 0:00:12]} 18. Bxe5 {[%emt 0:00:08]} Bd6 {[%emt 0:00:23]} 19. Bc4 {[%emt 0:01:36]} Qc7 {[%emt 0:00:41]} 20. Qf3 {[%emt 0:02:04]} Rad8 {[%emt 0:01:30]} 21. Bxd6 {[%emt 0:01:29]} Rxd6 {[%emt 0:00:53]} 22. Re5 {[%emt 0:00:02]} Qb6 {[%emt 0:00:42]} 23. b3 {[%emt 0:00:16]} Rc8 {[%emt 0:01:21]} 24. Rae1 {[%emt 0:00:22]} Qd8 {[%emt 0:00:32]} 25. g4 {[%emt 0:00:18]} Bg6 {[%emt 0:00:12]} 26. Qg3 {[%emt 0:00:26]} c5 {[%emt 0:01:35]} 27. f4 {[%emt 0:01:18]} Qf6 {[%emt 0:02:02]} 28. h4 {[%emt 0:01:10]} cxd4 {[%emt 0:00:58]} 29. f5 {[%emt 0:01:36]} exf5 {[%emt 0:00:28]} 30. h5 {[%emt 0:00:36]} f4 {[%emt 0:00:34]} 31. Qf2 {[%emt 0:01:32]} Bb1 {[%emt 0:00:59]} 32. cxd4 {[%emt 0:00:23]} Rxc4 {[%emt 0:00:41]} 33. bxc4 {[%emt 0:00:14]} Bd3 {[%emt 0:00:01]} 34. Rd1 {[%emt 0:00:58]} Bxc4 {[%emt 0:01:18]} 35. Re8+ {[%emt 0:00:01]} Kh7 {[%emt 0:00:00]} 36. Qc2+ {[%emt 0:00:00]} g6 {[%emt 0:00:01]} 37. Qxc4 {[%emt 0:00:02]} Kg7 {[%emt 0:00:08]} 38. Qc5 {[%emt 0:01:36]} Qh4 {[%emt 0:00:30]} 39. Qxd6 {[%emt 0:00:03]} Qxg4+ {[%emt 0:00:11]} 40. Kf2 {[%emt 0:00:07]} Qg3+ {[%emt 0:00:01]} 41. Kf1 {[%emt 0:00:03]} Qf3+ {[%emt 0:00:20]} 42. Ke1 {[%emt 0:00:02]} Qc3+ {[%emt 0:00:08]} 43. Rd2 {[%emt 0:00:40]} Qg3+ {[%emt 0:00:12]} 44. Kd1 {[%emt 0:00:11]} Qb3+ {[%emt 0:00:09]} 45. Ke2 {[%emt 0:00:06]} 1-0

[Event "FIDE Open World Rapid 2024"]
[Site "New York"]
[Date "2024.12.27"]
[Round "7.24"]
[White "Smirnov, Mark"]
[Black "Lodici, Lorenzo"]
[Result "1-0"]
[ECO "C71"]
[WhiteElo "2336"]
[BlackElo "2564"]
[Annotator "ChessBase"]
[PlyCount "111"]
[EventDate "2024.12.14"]
[EventType "swiss"]
[EventCountry "USA"]
[SourceTitle "playchess.com"]
[Source "ChessBase"]
[SourceQuality "1"]
[TimeControl "900+10"]

1. e4 {[%emt 0:00:01]} e5 {[%emt 0:00:01]} 2. Nf3 {[%emt 0:00:04]} Nc6 {[%emt 0:00:01]} 3. Bb5 {[%emt 0:00:01]} a6 {[%emt 0:00:01]} 4. Ba4 {[%emt 0:00:03]} d6 {[%emt 0:00:21]} 5. c4 {[%emt 0:00:19]} Bg4 {[%emt 0:00:04]} 6. h3 {[%emt 0:01:19]} Bxf3 {[%emt 0:00:08]} 7. Qxf3 {[%emt 0:00:04]} Nf6 {[%emt 0:00:16]} 8. Nc3 {[%emt 0:00:14]} Nd7 {[%emt 0:00:02]} 9. Bxc6 {[%emt 0:00:52]} bxc6 {[%emt 0:00:01]} 10. d3 {[%emt 0:00:13]} Nc5 {[%emt 0:00:01]} 11. O-O {[%emt 0:00:15]} Rb8 {[%emt 0:00:11]} 12. Rb1 {[%emt 0:00:23]} Be7 {[%emt 0:00:38]} 13. b4 {[%emt 0:00:28]} Ne6 {[%emt 0:00:01]} 14. Be3 {[%emt 0:00:29]} O-O {[%emt 0:00:02]} 15. a4 {[%emt 0:00:33]} Qd7 {[%emt 0:01:00]} 16. Rfc1 {[%emt 0:06:26]} Bg5 {[%emt 0:00:42]} 17. Bxg5 {[%emt 0:00:43]} Nxg5 {[%emt 0:00:01]} 18. Qe3 {[%emt 0:00:00]} Ne6 {[%emt 0:00:01]} 19. Rb2 {[%emt 0:01:52]} f5 {[%emt 0:00:58]} 20. exf5 {[%emt 0:01:12]} Rxf5 {[%emt 0:00:01]} 21. b5 {[%emt 0:01:27]} cxb5 {[%emt 0:00:01]} 22. cxb5 {[%emt 0:00:11]} axb5 {[%emt 0:03:15]} 23. axb5 {[%emt 0:00:32]} Rg5 {[%emt 0:00:01]} 24. Ne4 {[%emt 0:00:24]} Rg6 {[%emt 0:00:01]} 25. b6 {[%emt 0:00:19]} c5 {[%emt 0:00:02]} 26. Ra1 {[%emt 0:00:42]} Nf4 {[%emt 0:00:01]} 27. Ng3 {[%emt 0:00:01]} h5 {[%emt 0:02:12]} 28. Qf3 {[%emt 0:00:27]} d5 {[%emt 0:01:37]} 29. h4 {[%emt 0:00:12]} Qc6 {[%emt 0:03:46]} 30. Rab1 {[%emt 0:00:13]} Rb7 {[%emt 0:00:41]} 31. Kf1 {[%emt 0:00:10]} c4 {[%emt 0:00:38]} 32. dxc4 {[%emt 0:00:09]} Qxc4+ {[%emt 0:00:02]} 33. Kg1 {[%emt 0:00:06]} Qc5 {[%emt 0:02:44]} 34. Rb5 {[%emt 0:00:06]} Qd6 {[%emt 0:00:22]} 35. R5b4 {[%emt 0:00:19]} Qd8 {[%emt 0:00:14]} 36. Rxf4 {[%emt 0:00:10]} exf4 {[%emt 0:00:04]} 37. Nxh5 {[%emt 0:00:12]} Rgxb6 {[%emt 0:00:24]} 38. Rd1 {[%emt 0:00:07]} Rb1 {[%emt 0:00:03]} 39. Nxf4 {[%emt 0:00:09]} d4 {[%emt 0:00:23]} 40. g3 {[%emt 0:00:12]} Rxd1+ {[%emt 0:00:34]} 41. Qxd1 {[%emt 0:00:02]} Qd6 {[%emt 0:00:07]} 42. Qa4 {[%emt 0:00:18]} Re7 {[%emt 0:00:15]} 43. Qc4+ {[%emt 0:00:08]} Kh7 {[%emt 0:00:06]} 44. Qc2+ {[%emt 0:00:02]} Kh6 {[%emt 0:00:02]} 45. Qc8 {[%emt 0:00:15]} Kh7 {[%emt 0:00:06]} 46. Qc2+ {[%emt 0:00:01]} Kg8 {[%emt 0:00:02]} 47. Qc8+ {[%emt 0:00:16]} Kf7 {[%emt 0:00:05]} 48. Qc4+ {[%emt 0:00:12]} Kf8 {[%emt 0:00:11]} 49. h5 {[%emt 0:00:15]} Ke8 {[%emt 0:00:38]} 50. Kh2 {[%emt 0:00:11]} Rc7 {[%emt 0:00:07]} 51. Qg8+ {[%emt 0:00:05]} Qf8 {[%emt 0:00:01]} 52. Qxf8+ {[%emt 0:00:05]} Kxf8 {[%emt 0:00:01]} 53. Ne6+ {[%emt 0:00:01]} Kf7 {[%emt 0:00:02]} 54. Nxc7 {[%emt 0:00:01]} d3 {[%emt 0:00:00]} 55. Nd5 {[%emt 0:00:01]} d2 {[%emt 0:00:01]} 56. Ne3 {[%emt 0:00:01]} 1-0

[Event "FIDE Open World Rapid 2024"]
[Site "New York"]
[Date "2024.12.27"]
[Round "7.25"]
[White "Suleymanli, Aydin"]
[Black "Vachier-Lagrave, Maxime"]
[Result "1/2-1/2"]
[ECO "B90"]
[WhiteElo "2623"]
[BlackElo "2731"]
[Annotator "TA"]
[PlyCount "130"]
[EventDate "2024.12.14"]
[EventType "swiss"]
[EventCountry "USA"]
[SourceTitle "playchess.com"]
[Source "ChessBase"]
[SourceQuality "1"]
[TimeControl "900+10"]

{[%evp 67,130,-69,-60,-65,-38,-26,-20,-45,-39,-30,-29,-90,-83,-92,-94,-91,-87,-83,-96,-96,-43,-64,-7,-124,0,0,0,0,0,0,0,0,0,0,0,0,0,0,0,0,0,0,0,0,0,0,0,0,0,0,0,0,0,0,0,0,0,0,0,0,0,0,0,0,29990]} 1. e4 {[%emt 0:00:01]} c5 {[%emt 0:00:01]} 2. Nf3 {[%emt 0:00:01]} d6 {[%emt 0:00:02]} 3. d4 {[%emt 0:00:01]} cxd4 4. Nxd4 {[%emt 0:00:02]} Nf6 {[%emt 0:00:02]} 5. Nc3 {[%emt 0:00:01]} a6 {[%emt 0:00:01]} 6. Bd3 {[%emt 0:00:03]} g6 {[%emt 0:00:06]} 7. O-O {[%emt 0:00:04]} Bg7 {[%emt 0:00:01]} 8. a4 {[%emt 0:00:10]} O-O {[%emt 0:00:17]} 9. Re1 {[%emt 0:00:10]} b6 {[%emt 0:00:19]} 10. Bf1 {[%emt 0:00:31]} Bb7 {[%emt 0:00:02]} 11. Bg5 {[%emt 0:00:02]} Nbd7 {[%emt 0:00:02]} 12. Qd2 {[%emt 0:00:09]} Re8 {[%emt 0:00:41]} 13. Rad1 {[%emt 0:01:07]} Rc8 {[%emt 0:00:03]} 14. f3 {[%emt 0:00:49]} Qc7 {[%emt 0:01:31]} 15. Kh1 {[%emt 0:03:19]} Ne5 {[%emt 0:00:18]} 16. Qf2 {[%emt 0:03:57]} Nc4 {[%emt 0:00:36]} 17. Bc1 {[%emt 0:00:04]} e6 {[%emt 0:00:41]} 18. Ndb5 {[%emt 0:01:26]} axb5 {[%emt 0:00:02]} 19. Nxb5 {[%emt 0:00:01]} Qb8 {[%emt 0:01:21]} 20. b3 {[%emt 0:01:21]} d5 {[%emt 0:00:02]} 21. bxc4 {[%emt 0:01:56]} dxe4 {[%emt 0:00:01]} 22. Nd6 {[%emt 0:02:00]} exf3 {[%emt 0:00:01]} 23. gxf3 {[%emt 0:00:02]} Rc5 {[%emt 0:02:28]} 24. Nxe8 {[%emt 0:00:30]} Nxe8 {[%emt 0:00:02]} 25. Kg1 {[%emt 0:00:36]} Bf6 {[%emt 0:00:28]} 26. Be3 {[%emt 0:00:54]} Rh5 {[%emt 0:00:17]} 27. Qg3 {[%emt 0:00:09]} Qa8 {[%emt 0:00:20]} 28. Be2 {[%emt 0:00:10]} Bh4 {[%emt 0:00:13]} 29. Qg4 {[%emt 0:00:06]} Bxe1 {[%emt 0:00:13]} 30. Rxe1 {[%emt 0:00:01]} Qxa4 {[%emt 0:01:02]} 31. Bd3 {[%emt 0:00:13]} Qa8 {[%emt 0:00:46]} 32. Rf1 {[%emt 0:00:12]} Bc6 {[%emt 0:01:14]} 33. Qd4 {[%emt 0:00:19]} Qb8 {[%emt 0:00:27]} 34. Bf4 {[%emt 0:00:11]} e5 {[%emt 0:02:02]} 35. Bg3 {[%emt 0:00:01]} exd4 {[%emt 0:00:09]} 36. Bxb8 {[%emt 0:00:01]} b5 {[%emt 0:00:00]} 37. cxb5 {[%emt 0:00:22]} Bxb5 {[%emt 0:00:01]} 38. Re1 {[%emt 0:00:01]} Ng7 {[%emt 0:00:24]} 39. Be5 {[%emt 0:00:24]} (39. Be4 $11) 39... Bxd3 $17 {[%emt 0:00:08]} 40. Bxg7 {[%emt 0:00:05]} Kxg7 {[%emt 0:00:23]} (40... Bxc2 41. Bxd4 Kf8 42. Kg2 $11) 41. cxd3 {[%emt 0:00:01]} Ra5 {[%emt 0:00:20]} 42. Re4 {[%emt 0:00:14]} Ra4 {[%emt 0:00:01]} 43. Kf2 {[%emt 0:00:20]} h6 {[%emt 0:00:02]} (43... Kf8 $17 44. h4 h5) 44. f4 $15 {[%emt 0:00:09]} g5 {[%emt 0:00:35]} ({Black should play} 44... h5 $15) 45. Kf3 {[%emt 0:00:12] [#]} (45. fxg5 $11 {keeps the balance.} hxg5 46. Rg4) 45... Kg6 {[%emt 0:00:26]} (45... f5 $1 $17 {( -> ...g4+)} 46. Re5 Kf6) 46. fxg5 $11 {[%emt 0:00:10]} hxg5 {[%emt 0:01:46]} 47. h4 {[%emt 0:00:01]} f5 {[%emt 0:00:01]} 48. Re6+ {[%emt 0:00:00]} Kf7 {[%emt 0:00:01]} 49. Rh6 {[%emt 0:00:01]} gxh4 {[%emt 0:00:01]} 50. Kf4 $1 {[%emt 0:00:34]} Ra5 {[%emt 0:00:17]} 51. Rxh4 {[%emt 0:00:13]} Kg6 {[%emt 0:00:01]} 52. Rh3 {[%emt 0:00:07]} Ra1 {[%emt 0:00:16]} 53. Ke5 {[%emt 0:00:10]} Re1+ {[%emt 0:00:01]} 54. Kxd4 {[%emt 0:00:03]} f4 {[%emt 0:00:01]} 55. Rh8 {[%emt 0:00:13]} Kf5 {[%emt 0:00:10]} 56. Rf8+ {[%emt 0:00:02]} Kg4 {[%emt 0:00:01]} 57. Kd5 {[%emt 0:00:24]} f3 {[%emt 0:00:05]} 58. d4 {[%emt 0:00:04]} Kg3 {[%emt 0:00:04]} 59. Kc6 {[%emt 0:00:13]} Re6+ {[%emt 0:00:20]} 60. Kc5 {[%emt 0:00:13]} Re4 {[%emt 0:00:11]} 61. d5 {[%emt 0:00:08]} Rf4 {[%emt 0:00:02]} 62. Rxf4 {[%emt 0:00:02]} Kxf4 {[%emt 0:00:01]} 63. d6 {[%emt 0:00:01]} f2 {[%emt 0:00:01]} 64. d7 {[%emt 0:00:01]} f1=Q {[%emt 0:00:02]} 65. d8=Q {[%emt 0:00:02]} Ke5 $2 {[%emt 0:00:03][%mdl 8192]} (65... Qc1+ $11 66. Kb6 Qg1+ 67. Kc7 Qg7+ 68. Qd7 Qxd7+ 69. Kxd7) 1/2-1/2

[Event "FIDE Open World Rapid 2024"]
[Site "New York"]
[Date "2024.12.27"]
[Round "7.25"]
[White "Wagner, Dennis"]
[Black "Barbosa, Oliver"]
[Result "0-1"]
[ECO "D17"]
[WhiteElo "2616"]
[BlackElo "2451"]
[Annotator "ChessBase"]
[PlyCount "130"]
[EventDate "2024.12.14"]
[EventType "swiss"]
[EventCountry "USA"]
[SourceTitle "playchess.com"]
[Source "ChessBase"]
[SourceQuality "1"]
[TimeControl "900+10"]

1. d4 {[%emt 0:00:02]} d5 {[%emt 0:00:04]} 2. c4 {[%emt 0:00:02]} c6 {[%emt 0:00:02]} 3. Nf3 {[%emt 0:00:01]} Nf6 {[%emt 0:00:03]} 4. Nc3 {[%emt 0:00:10]} dxc4 {[%emt 0:00:03]} 5. a4 {[%emt 0:00:01]} Bf5 {[%emt 0:00:10]} 6. Ne5 {[%emt 0:00:02]} Nbd7 {[%emt 0:00:08]} 7. Nxc4 {[%emt 0:00:03]} Nb6 {[%emt 0:00:05]} 8. Ne5 {[%emt 0:00:03]} a5 {[%emt 0:00:02]} 9. h4 {[%emt 0:00:15]} g6 {[%emt 0:01:16]} 10. h5 {[%emt 0:01:27]} gxh5 {[%emt 0:00:26]} 11. e4 {[%emt 0:00:36]} Bg6 {[%emt 0:00:18]} 12. Be3 {[%emt 0:03:58]} e6 {[%emt 0:00:14]} 13. f3 {[%emt 0:02:19]} Nfd7 {[%emt 0:00:29]} 14. Nxd7 {[%emt 0:00:39]} Nxd7 {[%emt 0:00:04]} 15. Qd2 {[%emt 0:00:22]} Qb6 {[%emt 0:01:36]} 16. Bc4 {[%emt 0:00:54]} Qb4 {[%emt 0:00:14]} 17. Ba2 {[%emt 0:00:08]} Rd8 {[%emt 0:00:22]} 18. Rd1 {[%emt 0:00:19]} Nb6 {[%emt 0:01:23]} 19. Bg5 {[%emt 0:00:56]} Be7 {[%emt 0:01:02]} 20. Bxe7 {[%emt 0:00:11]} Qxe7 {[%emt 0:00:29]} 21. Ne2 {[%emt 0:00:26]} Qb4 {[%emt 0:00:17]} 22. Qxb4 {[%emt 0:00:11]} axb4 {[%emt 0:00:02]} 23. b3 {[%emt 0:01:23]} Ke7 {[%emt 0:01:50]} 24. Kf2 {[%emt 0:00:17]} Rd7 {[%emt 0:00:17]} 25. Bb1 {[%emt 0:00:08]} Rhd8 {[%emt 0:00:17]} 26. Bc2 {[%emt 0:00:13]} f6 {[%emt 0:00:52]} 27. Rd2 {[%emt 0:03:42]} c5 {[%emt 0:01:44]} 28. Rhd1 {[%emt 0:00:07]} c4 {[%emt 0:00:01]} 29. a5 {[%emt 0:00:29]} c3 {[%emt 0:00:11]} 30. Rd3 {[%emt 0:00:02]} Na8 {[%emt 0:00:01]} 31. Ra1 {[%emt 0:00:01]} Nc7 {[%emt 0:00:11]} 32. Ra4 {[%emt 0:00:05]} Na6 {[%emt 0:00:01]} 33. Rd1 {[%emt 0:00:07]} Be8 {[%emt 0:00:22]} 34. Raa1 {[%emt 0:00:02]} e5 {[%emt 0:00:28]} 35. d5 {[%emt 0:00:11]} Nc5 {[%emt 0:00:08]} 36. Ng3 {[%emt 0:00:09]} Bg6 {[%emt 0:00:07]} 37. Rh1 {[%emt 0:00:03]} Rxd5 {[%emt 0:00:06]} 38. exd5 {[%emt 0:00:34]} Bxc2 {[%emt 0:00:02]} 39. a6 {[%emt 0:00:02]} bxa6 {[%emt 0:00:10]} 40. Rxh5 {[%emt 0:00:03]} Bg6 {[%emt 0:00:14]} 41. Rhh1 {[%emt 0:00:04]} Rxd5 {[%emt 0:00:05]} 42. Ne4 {[%emt 0:00:36]} Nxe4+ {[%emt 0:01:50]} 43. fxe4 {[%emt 0:00:02]} Bxe4 {[%emt 0:00:06]} 44. Rxa6 {[%emt 0:00:01]} c2 {[%emt 0:00:09]} 45. Raa1 {[%emt 0:00:37]} Rd3 {[%emt 0:00:08]} 46. Rh3 {[%emt 0:00:35]} Rd1 {[%emt 0:00:11]} 47. Rh1 {[%emt 0:00:01]} Rb1 {[%emt 0:00:02]} 48. Ke3 {[%emt 0:00:04]} Bg6 {[%emt 0:00:28]} 49. Kd2 {[%emt 0:00:04]} Rxb3 {[%emt 0:00:07]} 50. Ra7+ {[%emt 0:00:04]} Ke6 {[%emt 0:00:10]} 51. Ra6+ {[%emt 0:00:02]} Kf5 {[%emt 0:00:16]} 52. Kxc2 {[%emt 0:00:14]} Rg3 {[%emt 0:00:06]} 53. Rh2 {[%emt 0:00:09]} Kg5+ {[%emt 0:00:39]} 54. Kd2 {[%emt 0:00:02]} b3 {[%emt 0:00:10]} 55. Rb6 {[%emt 0:00:06]} h5 {[%emt 0:00:08]} 56. Rb4 {[%emt 0:00:11]} h4 {[%emt 0:00:46]} 57. Ke1 {[%emt 0:00:04]} Bf5 {[%emt 0:00:33]} 58. Kd2 {[%emt 0:00:35]} Rd3+ {[%emt 0:00:17]} 59. Ke2 {[%emt 0:00:17]} Rc3 {[%emt 0:00:25]} 60. Rh1 {[%emt 0:00:21]} Rc2+ {[%emt 0:00:04]} 61. Kf3 {[%emt 0:00:03]} b2 {[%emt 0:00:07]} 62. Rbxh4 {[%emt 0:00:22]} Rc3+ {[%emt 0:00:11]} 63. Kf2 {[%emt 0:00:03]} b1=Q {[%emt 0:00:15]} 64. Rh5+ {[%emt 0:00:03]} Kg6 {[%emt 0:00:04]} 65. Rh6+ {[%emt 0:00:02]} Kg7 {[%emt 0:00:01]} 0-1

[Event "FIDE Open World Rapid 2024"]
[Site "New York"]
[Date "2024.12.27"]
[Round "7.26"]
[White "Indjic, Aleksandar"]
[Black "Blohberger, Felix"]
[Result "1/2-1/2"]
[ECO "A45"]
[WhiteElo "2647"]
[BlackElo "2534"]
[Annotator "ChessBase"]
[PlyCount "132"]
[EventDate "2024.12.14"]
[EventType "swiss"]
[EventCountry "USA"]
[SourceTitle "playchess.com"]
[Source "ChessBase"]
[SourceQuality "1"]
[TimeControl "900+10"]

1. d4 {[%emt 0:00:02]} Nf6 {[%emt 0:00:35]} 2. Bg5 {[%emt 0:00:03]} e6 {[%emt 0:00:10]} 3. e4 {[%emt 0:00:04]} h6 {[%emt 0:00:03]} 4. Bxf6 {[%emt 0:00:03]} Qxf6 {[%emt 0:00:02]} 5. c3 {[%emt 0:00:01]} c5 {[%emt 0:00:01]} 6. d5 {[%emt 0:00:04]} exd5 {[%emt 0:01:01]} 7. Qxd5 {[%emt 0:00:09]} Qe6 {[%emt 0:00:32]} 8. Bc4 {[%emt 0:00:15]} Nc6 {[%emt 0:00:14]} 9. Nd2 {[%emt 0:00:03]} Ne5 {[%emt 0:01:13]} 10. O-O-O {[%emt 0:00:18]} Qxd5 {[%emt 0:00:18]} 11. exd5 {[%emt 0:00:18]} Nxc4 {[%emt 0:00:30]} 12. Nxc4 {[%emt 0:00:02]} d6 {[%emt 0:00:02]} 13. Ne2 {[%emt 0:00:39]} Bd7 {[%emt 0:00:58]} 14. Ng3 {[%emt 0:00:04]} Kd8 {[%emt 0:00:22]} 15. Rde1 {[%emt 0:00:13]} Kc7 {[%emt 0:00:50]} 16. Re3 {[%emt 0:00:32]} b5 {[%emt 0:02:19]} 17. Na5 {[%emt 0:00:06]} h5 {[%emt 0:01:48]} 18. h4 {[%emt 0:00:50]} g6 {[%emt 0:00:06]} 19. Kc2 {[%emt 0:00:06]} Re8 {[%emt 0:03:04]} 20. Rxe8 {[%emt 0:00:06]} Bxe8 {[%emt 0:00:01]} 21. Re1 {[%emt 0:00:02]} Bd7 {[%emt 0:00:04]} 22. Ne4 {[%emt 0:00:44]} Bg7 {[%emt 0:00:38]} 23. Ng5 {[%emt 0:00:14]} Re8 {[%emt 0:00:12]} 24. Rxe8 {[%emt 0:00:28]} Bxe8 {[%emt 0:00:01]} 25. Nb3 {[%emt 0:00:07]} Bf6 {[%emt 0:00:45]} 26. Nd2 {[%emt 0:00:04]} Bxg5 {[%emt 0:01:35]} 27. hxg5 {[%emt 0:00:02]} Bd7 {[%emt 0:00:03]} 28. Nf1 {[%emt 0:00:07]} Bf5+ {[%emt 0:00:14]} 29. Kd2 {[%emt 0:00:01]} Kb6 {[%emt 0:00:40]} 30. b4 {[%emt 0:00:05]} a5 {[%emt 0:00:11]} 31. a3 {[%emt 0:00:01]} Be4 {[%emt 0:00:40]} 32. Ne3 {[%emt 0:00:03]} h4 {[%emt 0:00:41]} 33. f3 {[%emt 0:00:02]} h3 {[%emt 0:00:03]} 34. gxh3 {[%emt 0:00:33]} Bxf3 {[%emt 0:00:01]} 35. Ke1 {[%emt 0:00:02]} axb4 {[%emt 0:00:15]} 36. axb4 {[%emt 0:00:02]} Kc7 {[%emt 0:00:38]} 37. Kf2 {[%emt 0:00:02]} Bh5 {[%emt 0:00:18]} 38. Kg3 {[%emt 0:00:38]} Kb6 {[%emt 0:00:10]} 39. Kf4 {[%emt 0:00:03]} Be2 {[%emt 0:00:07]} 40. h4 {[%emt 0:00:08]} cxb4 {[%emt 0:00:10]} 41. cxb4 {[%emt 0:00:02]} Kc7 {[%emt 0:00:04]} 42. Nc2 {[%emt 0:01:17]} Bc4 {[%emt 0:00:11]} 43. Nd4 {[%emt 0:00:44]} Kd7 {[%emt 0:00:17]} 44. Ke4 {[%emt 0:00:05]} Bf1 {[%emt 0:00:08]} 45. Ke3 {[%emt 0:01:09]} Bc4 {[%emt 0:00:05]} 46. Kf4 {[%emt 0:00:06]} Ke7 {[%emt 0:00:14]} 47. Kg4 {[%emt 0:00:33]} Kd7 {[%emt 0:00:02]} 48. Kf4 {[%emt 0:00:01]} Ke7 {[%emt 0:00:01]} 49. Ke4 {[%emt 0:00:01]} Kd7 {[%emt 0:00:12]} 50. Nf3 {[%emt 0:00:10]} Be2 {[%emt 0:00:12]} 51. Nd2 {[%emt 0:00:03]} Kc7 {[%emt 0:00:16]} 52. Nb1 {[%emt 0:00:02]} Kd7 {[%emt 0:00:10]} 53. Nc3 {[%emt 0:00:02]} Bc4 {[%emt 0:00:03]} 54. Kf4 {[%emt 0:00:02]} Ke7 {[%emt 0:00:08]} 55. Kg4 {[%emt 0:00:01]} Kf8 {[%emt 0:00:17]} 56. h5 {[%emt 0:00:07]} gxh5+ {[%emt 0:00:09]} 57. Kxh5 {[%emt 0:00:01]} Kg7 {[%emt 0:00:05]} 58. Ne4 {[%emt 0:00:07]} Bxd5 {[%emt 0:00:15]} 59. Nxd6 {[%emt 0:00:03]} Bf3+ {[%emt 0:00:15]} 60. Kh4 {[%emt 0:00:01]} Kg6 {[%emt 0:00:17]} 61. Nxb5 {[%emt 0:00:48]} f6 {[%emt 0:00:02]} 62. Kg3 {[%emt 0:00:01]} Bh1 {[%emt 0:00:14]} 63. gxf6 {[%emt 0:00:06]} Kxf6 {[%emt 0:00:02]} 64. Nd4 {[%emt 0:00:06]} Ke5 {[%emt 0:00:09]} 65. Nf3+ {[%emt 0:00:02]} Bxf3 {[%emt 0:00:06]} 66. Kxf3 {[%emt 0:00:01]} Kd4 {[%emt 0:00:01]} 1/2-1/2